fUSD/lending_fUSD_20240624
["ID","MTS","AMOUNT","RATE_DAILY","PERIOD"]
[330300064,1719240568247,-150.0,0.00013209,2]
[330300066,1719240568308,-1233.18948625,0.0001321,2]
[330300068,1719240568379,-2124.05948625,0.0001321,2]
[330300069,1719240568488,-2124.05948625,0.0001321,2]
[330300070,1719240568610,-2124.05948625,0.0001321,2]
[330300071,1719240568669,-2124.05948625,0.0001321,2]
[330300072,1719240568731,-807.57540411,0.0001321,2]
[330300073,1719240568791,-1316.48408214,0.00013571,2]
[330300074,1719240568869,-524.22591786,0.00013571,2]
[330300075,1719240568925,-150.0,0.00013632,2]
[330300076,1719240568979,-1449.83356839,0.00013689,2]
[330300077,1719240569041,-946.79403161,0.00013689,2]
[330300080,1719240569102,-1177.26545464,0.00013699,2]
[330300081,1719240569168,-1573.73454536,0.00013699,2]
[330300082,1719240569221,-550.32494089,0.00013699,2]
[330300083,1719240569492,-2124.05948625,0.00013699,2]
[330300084,1719240569568,-2124.05948625,0.00013699,2]
[330300085,1719240569849,-416.53608661,0.00013699,2]
[330300086,1719240569907,-1050.90465538,0.00013789,2]
[330300088,1719240592744,-2620.70138806,0.00013789,2]
[330300090,1719240592835,-2620.70138806,0.00013789,2]
[330300093,1719240593027,-2620.70138806,0.00013789,2]
[330300094,1719240593158,-25.6176938,0.00013789,2]
[330300095,1719240593213,-1060.44917758,0.00013789,2]
[330300096,1719240593267,-1534.63451668,0.0001379,2]
[330300097,1719240593330,-2114.48548332,0.0001379,2]
[330300098,1719240593385,-397.66774207,0.0001379,2]
[330300100,1719240632339,-200.0,0.0001376,2]
[330300103,1719240632350,-300.0,0.00013789,2]
[330300105,1719240632360,-51.29288503,0.0001379,2]
[330300107,1719240632371,-1610.9642997,0.0001379,2]
[330300109,1719240632384,-6520.0,0.0001379,2]
[330300110,1719240632395,-1135.31489135,0.0001379,2]
[330300111,1719240632425,-3556.21712772,0.0001379,2]
[330300112,1719240632438,-20021.01305413,0.0001379,2]
[330300113,1719240632448,-7960.19874885,0.00013799,2]
[330300114,1719240632458,-1252.7833,0.000138,2]
[330300115,1719240632467,-1350.01491302,0.000138,2]
[330300116,1719240632480,-1491.71208698,0.000138,2]
[330300117,1719240632489,-438.2805,0.000138,2]
[330300118,1719240632499,-698.4351,0.000138,2]
[330300119,1719240632509,-35009.9324,0.000138,2]
[330300120,1719240632518,-4291.7394,0.000138,2]
[330300121,1719240632528,-5854.2673,0.000138,2]
[330300122,1719240632537,-2550.0931,0.000138,2]
[330300123,1719240632547,-500.0,0.000138,5]
[330300124,1719240632556,-2285.807569,0.000138,2]
[330300125,1719240632566,-459.73,0.00013827,2]
[330300126,1719240632575,-250.0,0.0001385,2]
[330300127,1719240632587,-369.21,0.0001385,2]
[330300128,1719240632598,-459.73,0.00013865,2]
[330300129,1719240632607,-590.87,0.00013882,2]
[330300130,1719240632617,-1429.93,0.00013882,2]
[330300131,1719240632627,-198.27,0.00013882,2]
[330300132,1719240632637,-208.77,0.0001389,3]
[330300133,1719240632648,-26761.0273238,0.000139,2]
[330300134,1719240632658,-17269.4566,0.000139,2]
[330300135,1719240632672,-1000.0,0.000139,2]
[330300136,1719240632682,-42102.7873,0.000139,2]
[330300137,1719240632692,-310.5729,0.000139,2]
[330300138,1719240632701,-85074.9446,0.000139,2]
[330300139,1719240632710,-274.6897,0.000139,2]
[330300140,1719240632720,-500.0,0.000139,2]
[330300141,1719240632729,-176.81979758,0.000139,2]
[330300142,1719240632739,-7500.0,0.000139,2]
[330300143,1719240632749,-800.0,0.000139,5]
[330300144,1719240632758,-182.34674816,0.000139,2]
[330300145,1719240632767,-459.73,0.00013903,2]
[330300146,1719240632777,-163.71307365,0.00013933,2]
[330300147,1719240632786,-322.12809989,0.00013933,2]
[330300148,1719240632795,-459.73,0.00013941,2]
[330300149,1719240632804,-459.73,0.00013978,2]
[330300150,1719240632814,-156.75800947,0.0001399,2]
[330300151,1719240632823,-133616.55306885,0.00014,2]
[330300152,1719240634991,-656282.42350829,0.00014,2]
[330300158,1719240640288,-300.0,0.00014,2]
[330300161,1719240640300,-400.59272395,0.00014,2]
[330300162,1719240640314,-3145.17173428,0.00014,2]
[330300163,1719240640326,-666.23816241,0.00014,2]
[330300164,1719240640337,-27121.56648588,0.00014,2]
[330300165,1719240640776,-27804.48745662,0.00014,2]
[330300166,1719240641245,-515.13694891,0.00014,2]
[330300167,1719240641256,-255.71812749,0.00014,2]
[330300168,1719240641267,-2469.2744321,0.00014,2]
[330300194,1719240643599,-70858.30368196,0.00014,2]
[330300197,1719240643611,-614.98003177,0.00014,2]
[330300200,1719240643623,-1283.33901254,0.00014,2]
[330300202,1719240643635,-574.57620783,0.00014,2]
[330300206,1719240643647,-655.16092701,0.00014,2]
[330300212,1719240644545,-133137.50231496,0.00014,2]
[330300213,1719240644556,-2300.90772618,0.00014,2]
[330300214,1719240644567,-32569.53000001,0.00014,2]
[330300215,1719240644578,-1301.3,0.00014,2]
[330300222,1719240649622,-648.73532355,0.00014,2]
[330300223,1719240649636,-337.08969517,0.00014,2]
[330300224,1719240649648,-613.53,0.00014,2]
[330300225,1719240649800,-61378.15214443,0.00014,2]
[330300226,1719240649812,-255.5202649,0.00014,2]
[330300227,1719240649824,-21264.49106437,0.00014,2]
[330300228,1719240649835,-602.00844115,0.00014,2]
[330300229,1719240649874,-1523.00718957,0.00014,2]
[330300230,1719240649886,-250.58146857,0.00014,2]
[330300231,1719240649898,-377.33058206,0.00014,2]
[330300232,1719240649910,-2759.37216379,0.00014,2]
[330300233,1719240649922,-2787.44339086,0.00014,2]
[330300234,1719240654074,-621.91316261,0.00014,2]
[330300236,1719240654086,-1138.50441589,0.00014,2]
[330300237,1719240654097,-501.02048023,0.00014,2]
[330300238,1719240654109,-3587.94507457,0.00014,2]
[330300239,1719240654120,-2492.56313245,0.00014,2]
[330300240,1719240654131,-1000.0,0.00014,2]
[330300241,1719240654143,-398.07903376,0.00014,2]
[330300242,1719240679235,210.69,0.00018849,30]
[330300243,1719240751188,150.5,0.0001499,30]
[330300267,1719240873329,205.0,0.0001499,30]
[330300269,1719241003668,1000.0,0.00026,120]
[330300270,1719241009802,1000.0,0.00026,120]
[330300271,1719241024489,1000.0,0.00026,120]
[330300272,1719241031419,1000.0,0.00026,120]
[330300273,1719241035475,1000.0,0.00026,120]
[330300274,1719241041458,1000.0,0.00026,120]
[330300275,1719241046600,1000.0,0.00026,120]
[330300276,1719241051114,1000.0,0.00026,120]
[330300278,1719241064121,1000.0,0.00026,120]
[330300279,1719241121468,6600.0,0.00025,60]
[330300283,1719241242154,193.13,0.00018849,30]
[330300288,1719241441305,-632.71,0.00011332,2]
[330300310,1719241472046,1060.44917758,0.00011332,2]
[330300312,1719241534121,-250.0,0.00012618,2]
[330300313,1719241534143,-3535.31,0.00012623,2]
[330300314,1719241534163,-153.77125082,0.0001298,2]
[330300315,1719241534185,-250.0,0.00013042,2]
[330300316,1719241534209,-300.0,0.00013079,2]
[330300317,1719241534230,-10537.00283536,0.0001308,2]
[330300318,1719241534252,-150.0,0.0001308,2]
[330300319,1719241534274,-200.0,0.0001308,2]
[330300320,1719241534296,-1369.33828562,0.00013081,2]
[330300322,1719241547411,151.0,0.00026,120]
[330300323,1719241569519,552.49402152,0.00011332,2]
[330300325,1719241637174,-150.0,0.0001308,2]
[330300326,1719241637194,-300.0,0.0001308,2]
[330300327,1719241637216,-6194.06756993,0.00013081,2]
[330300328,1719241652101,-16336.59414445,0.00013081,2]
[330300329,1719241652340,-167.55,0.00013144,2]
[330300330,1719241652361,-150.0,0.00013181,2]
[330300331,1719241652383,-460.04,0.00013193,2]
[330300332,1719241652404,-176.49,0.00013218,2]
[330300333,1719241652426,-460.04,0.00013229,2]
[330300334,1719241652450,-460.04,0.00013265,2]
[330300335,1719241652474,-197.38,0.0001329,2]
[330300336,1719241652496,-460.04,0.00013301,2]
[330300337,1719241652517,-1926.46,0.00013337,2]
[330300338,1719241652538,-460.04,0.00013337,2]
[330300339,1719241652560,-460.04,0.00013374,2]
[330300340,1719241652581,-460.04,0.0001341,2]
[330300341,1719241652606,-460.04,0.00013446,2]
[330300342,1719241652627,-460.04,0.00013482,2]
[330300343,1719241652649,-460.04,0.00013518,2]
[330300344,1719241652671,-1000.0,0.00013539,2]
[330300345,1719241652694,-460.04,0.00013555,2]
[330300346,1719241652716,-9599.92406537,0.00013589,2]
[330300347,1719241652738,-460.04,0.00013591,2]
[330300348,1719241652760,-632.71,0.00013596,2]
[330300349,1719241652780,-18497.03634779,0.00013599,2]
[330300350,1719241652802,-460.04,0.00013627,2]
[330300351,1719241652822,-532.56139112,0.00013662,2]
[330300352,1719241652848,-460.04,0.00013663,2]
[330300353,1719241652869,-10317.61817845,0.00013698,2]
[330300354,1719241652890,-991.45,0.00013699,2]
[330300355,1719241652913,-639.42,0.00013699,2]
[330300356,1719241652938,-263.28,0.00013699,2]
[330300357,1719241652960,-2945.23,0.00013699,2]
[330300358,1719241652981,-200.0,0.00013699,2]
[330300359,1719241653004,-460.04,0.00013699,2]
[330300360,1719241653030,-460.04,0.00013736,2]
[330300361,1719241653051,-460.04,0.00013772,2]
[330300362,1719241653074,-500.0,0.000138,2]
[330300363,1719241653098,-153.77125081,0.000138,2]
[330300364,1719241653123,-460.04,0.00013808,2]
[330300365,1719241653146,-460.04,0.00013844,2]
[330300366,1719241653170,-460.04,0.0001388,2]
[330300367,1719241653191,-1036.79413611,0.00013899,5]
[330300368,1719241653212,-4787.81704601,0.00013899,2]
[330300369,1719241653233,-1948.9471,0.000139,2]
[330300370,1719241653252,-1000.0,0.000139,2]
[330300371,1719241653273,-1000.0,0.000139,2]
[330300372,1719241653297,-1000.0,0.000139,2]
[330300373,1719241653318,-1000.0,0.000139,2]
[330300374,1719241653341,-809.0,0.000139,2]
[330300375,1719241653361,-1000.0,0.000139,2]
[330300376,1719241653382,-1123.3096,0.000139,2]
[330300377,1719241653403,-1181.4735,0.000139,2]
[330300378,1719241653425,-18560.3664,0.000139,2]
[330300379,1719241653446,-9526.8687,0.000139,2]
[330300380,1719241653467,-163.71307365,0.000139,2]
[330300381,1719241653488,-1378.91462306,0.000139,2]
[330300382,1719241653509,-105.32333063,0.000139,2]
[330300383,1719241664519,552.49402152,0.00011332,2]
[330300395,1719241780541,552.49402152,0.00011332,2]
[330300398,1719241796411,177.03,0.00018849,30]
[330300404,1719241832601,-569.43,0.00012355,2]
[330300406,1719241832611,-887.93932126,0.00013209,2]
[330300408,1719241832620,-1483.86884626,0.00013347,2]
[330300410,1719241832631,-242.27110501,0.00013347,2]
[330300413,1719241832641,-175.50755339,0.00013698,2]
[330300415,1719241832650,-4787.81704601,0.00013698,2]
[330300417,1719241832659,-552.49402152,0.00013736,2]
[330300419,1719241832668,-150.0,0.00013788,2]
[330300420,1719241832677,-49.75780771,0.00013816,2]
[330300421,1719241832688,-365.73310168,0.00013816,2]
[330300422,1719241832697,-678.52442411,0.000139,2]
[330300423,1719241832709,-9989.83191623,0.000139,2]
[330300424,1719241832718,-7500.0,0.000139,2]
[330300425,1719241832730,-338.03543821,0.000139,2]
[330300426,1719241832739,-2768.91234225,0.000139,2]
[330300427,1719241832748,-1206.55029516,0.000139,2]
[330300428,1719241832757,-250.0,0.00013927,2]
[330300429,1719241832766,-172.91,0.00013981,2]
[330300430,1719241832775,-277578.12779353,0.00014,2]
[330300431,1719241832787,-341.48088377,0.00014,2]
[330300432,1719241832797,-9360.19644309,0.00014,2]
[330300433,1719241832809,-1349.47797968,0.00014,2]
[330300434,1719241832821,-561.51132701,0.00014,2]
[330300435,1719241832832,-3250.79755,0.00014,2]
[330300436,1719241832843,-2123.99997,0.00014,2]
[330300437,1719241832855,-1275.73562343,0.00014,2]
[330300438,1719241832866,-5660.36809885,0.00014,2]
[330300439,1719241832878,-192837.68511821,0.00014,2]
[330300440,1719241832888,-499.99,0.00014,2]
[330300441,1719241832897,-500.0,0.00014,2]
[330300442,1719241832907,-500.0,0.00014,2]
[330300443,1719241832916,-500.0,0.00014,2]
[330300444,1719241832925,-500.0,0.00014,2]
[330300445,1719241832935,-500.0,0.00014,2]
[330300446,1719241832944,-500.0,0.00014,2]
[330300447,1719241832954,-500.0,0.00014,2]
[330300448,1719241832963,-500.0,0.00014,2]
[330300449,1719241832975,-500.0,0.00014,2]
[330300450,1719241832984,-500.0,0.00014,2]
[330300451,1719241832995,-500.0,0.00014,2]
[330300452,1719241833005,-500.0,0.00014,2]
[330300453,1719241833018,-500.0,0.00014,2]
[330300454,1719241833028,-500.0,0.00014,2]
[330300455,1719241833039,-500.0,0.00014,2]
[330300456,1719241833048,-500.0,0.00014,2]
[330300457,1719241833058,-605.0,0.00014,2]
[330300458,1719241833067,-482.94283217,0.00014036,2]
[330300459,1719241833076,-165.72,0.00014037,2]
[330300460,1719241833086,-150.0,0.00014146,2]
[330300461,1719241833097,-263.28,0.00014384,2]
[330300463,1719241833106,-155.71170604,0.00014541,2]
[330300465,1719241833115,-338.03543811,0.00014542,2]
[330300466,1719241833124,-569.43,0.00014618,2]
[330300467,1719241833133,-10668.35634026,0.00014899,2]
[330300468,1719241833143,-2768.91234217,0.00014899,2]
[330300469,1719241833152,-1000.0,0.000149,2]
[330300470,1719241833161,-169.7347945,0.000149,2]
[330300471,1719241833170,-15136.78111214,0.000149,2]
[330300472,1719241833179,-176.54092728,0.000149,2]
[330300473,1719241833189,-681.20323358,0.000149,2]
[330300474,1719241833198,-2735.27898876,0.000149,2]
[330300475,1719241833207,-175.20791801,0.000149,2]
[330300476,1719241833217,-219.86,0.00014904,2]
[330300477,1719241833231,-3091.0,0.00014906,2]
[330300478,1719241833240,-197.38,0.00014951,2]
[330300479,1719241833254,-398.53846064,0.00014988,2]
[330300480,1719241833263,-156.75800948,0.0001499,2]
[330300481,1719241833272,-150.0,0.00014999,2]
[330300482,1719241833281,-150.0,0.00014999,7]
[330300483,1719241833291,-151.63140221,0.00014999,7]
[330300484,1719241833300,-182923.8526376,0.00015,2]
[330300485,1719241833312,-872.67905712,0.00015,2]
[330300486,1719241833323,-606.15,0.00015,2]
[330300487,1719241833334,-315.29707946,0.00015,2]
[330300488,1719241833345,-564.03305358,0.00015,2]
[330300489,1719241833358,-453.4294482,0.00015,2]
[330300490,1719241833396,-1865.69249295,0.00015,2]
[330300491,1719241833408,-555.90330277,0.00015,2]
[330300492,1719241833420,-2253.76645182,0.00015,2]
[330300493,1719241833431,-2124.57338679,0.00015,2]
[330300494,1719241833441,-327.85685687,0.00015,2]
[330300495,1719241833453,-454.25461509,0.00015,2]
[330300496,1719241833463,-522.55327531,0.00015,2]
[330300497,1719241833479,-1286.32241983,0.00015,2]
[330300498,1719241838938,-175.50755339,0.00013347,2]
[330300499,1719241838949,-824.12244661,0.00015,2]
[330300503,1719241839674,-820.5999,0.00015,2]
[330300504,1719241839688,-56234.31971239,0.00015,2]
[330300505,1719241839701,-6449.64861456,0.00015,2]
[330300506,1719241839714,-2820.32,0.00015,2]
[330300507,1719241839727,-2588.0,0.00015,2]
[330300508,1719241839740,-195418.34122193,0.00015,2]
[330300509,1719241839752,-38848.03607382,0.00015,2]
[330300510,1719241839765,-11309.65662636,0.00015,2]
[330300511,1719241839777,-992.49280607,0.00015,2]
[330300512,1719241839790,-2598.09399879,0.00015,2]
[330300513,1719241841096,-4620.65287364,0.00015,2]
[330300514,1719241841107,-253.44497898,0.00015,2]
[330300515,1719241841118,-345.91147168,0.00015,2]
[330300517,1719241841129,-339.53011806,0.00015,2]
[330300519,1719241841141,-3455.39202086,0.00015,2]
[330300521,1719241841153,-408.88848651,0.00015,2]
[330300525,1719241841181,-6971.10367794,0.00015,2]
[330300527,1719241841192,-1756.12618185,0.00015,2]
[330300529,1719241841203,-12261.49999983,0.00015,2]
[330300531,1719241841214,-317.22995607,0.00015,2]
[330300533,1719241841225,-12086.47294453,0.00015,2]
[330300535,1719241841236,-647572.16026159,0.00015,2]
[330300538,1719241841248,-3542154.39723464,0.00015,2]
[330300540,1719241841257,-1000.0,0.00015,3]
[330300542,1719241841266,-1000.0,0.00015,3]
[330300544,1719241841275,-1000.0,0.00015,3]
[330300545,1719241841284,-1000.0,0.00015,3]
[330300546,1719241841294,-5000.0,0.00015,2]
[330300547,1719241841303,-263.28,0.00015068,2]
[330300548,1719241841312,-174.0174947,0.00015146,2]
[330300549,1719241841321,-210.0,0.00015166,2]
[330300550,1719241841330,-338.03543811,0.00015184,2]
[330300551,1719241841340,-1206.55029512,0.00015184,2]
[330300552,1719241841349,-1000.0,0.00015232,2]
[330300553,1719241841360,-6220.54215746,0.00015361,2]
[330300554,1719241841370,-3535.31,0.00015362,2]
[330300555,1719241841379,-15695.9462619,0.000154,2]
[330300556,1719241841388,-15136.78111208,0.00015626,2]
[330300557,1719241841397,-263.28,0.00015753,2]
[330300558,1719241841406,-338.03543811,0.00015826,2]
[330300559,1719241841415,-167.42,0.00015831,2]
[330300560,1719241841425,-10668.35634026,0.00015898,2]
[330300561,1719241841434,-2768.91234217,0.00015898,2]
[330300562,1719241841443,-1000.0,0.000159,2]
[330300563,1719241841452,-1000.0,0.000159,2]
[330300564,1719241841461,-15136.78111208,0.00016353,2]
[330300565,1719241841470,-570.654,0.00016356,2]
[330300566,1719241841491,-165.72,0.00016376,2]
[330300567,1719241841500,-263.28,0.00016438,2]
[330300568,1719241841509,-338.03543811,0.00016469,2]
[330300569,1719241841518,-1206.55029512,0.00016469,2]
[330300570,1719241841529,-197.38,0.00016613,2]
[330300571,1719241841538,-293.0,0.00016683,2]
[330300572,1719241841547,-1493.37730779,0.00016881,2]
[330300573,1719241841557,-569.43,0.00016882,2]
[330300574,1719241841567,-253.90432169,0.00016896,2]
[330300575,1719241841576,-10668.35634026,0.00016897,2]
[330300576,1719241841585,-2768.91234217,0.00016897,2]
[330300577,1719241841595,-4198.0,0.000169,3]
[330300578,1719241841603,-1000.0,0.000169,3]
[330300579,1719241841612,-1003.0,0.000169,2]
[330300580,1719241841621,-1000.0,0.00016924,2]
[330300581,1719241841630,-172.91,0.00016947,2]
[330300582,1719241841640,-15136.78111208,0.00017079,2]
[330300583,1719241841649,-338.03543811,0.00017111,2]
[330300584,1719241841659,-190.5818645,0.00017136,2]
[330300585,1719241841668,-167.42,0.00017137,2]
[330300586,1719241841678,-570.654,0.00017257,2]
[330300587,1719241841688,-338.03543811,0.00017753,2]
[330300588,1719241841698,-1206.55029512,0.00017753,2]
[330300589,1719241841707,-15136.78111208,0.00017805,2]
[330300590,1719241841717,-10668.35634026,0.00017896,2]
[330300591,1719241841726,-2768.91234217,0.00017896,2]
[330300592,1719241841735,-1000.0,0.000179,3]
[330300593,1719241841744,-1012.62731708,0.00017999,2]
[330300594,1719241841753,-1462.49009777,0.00018,2]
[330300595,1719241841762,-640.66943018,0.00018,2]
[330300596,1719241841772,-3535.31,0.00018102,2]
[330300597,1719241841781,-570.654,0.00018256,2]
[330300598,1719241841790,-197.38,0.00018274,2]
[330300599,1719241841799,-258.61409544,0.00018394,2]
[330300600,1719241841808,-338.03543811,0.00018395,2]
[330300601,1719241841817,-167.42,0.00018444,2]
[330300602,1719241841826,-2698.39180074,0.000185,2]
[330300603,1719241841835,-2883.6533784,0.00018509,2]
[330300604,1719241841845,-15136.78111208,0.00018532,2]
[330300605,1719241841853,-1000.0,0.00018617,2]
[330300606,1719241841862,-2022.99161554,0.00018679,2]
[330300607,1719241841871,-950.0,0.0001868,2]
[330300608,1719241841881,-165.72,0.00018716,2]
[330300609,1719241841889,-5800.0,0.00018767,2]
[330300610,1719241841898,-290.0,0.00018767,2]
[330300611,1719241841908,-5168.0,0.00018767,2]
[330300612,1719241841917,-1197.0,0.00018767,2]
[330300613,1719241841926,-1662.115,0.00018767,2]
[330300614,1719241841935,-38315.696,0.00018767,2]
[330300615,1719241841945,-1068.0,0.00018767,2]
[330300616,1719241841954,-698.91607848,0.00018799,2]
[330300617,1719241841963,-412.61839352,0.00018799,2]
[330300618,1719241841972,-63082.40143946,0.000188,2]
[330300619,1719241841981,-2000.0,0.00018849,2]
[330300620,1719241841991,-200.0,0.00018849,2]
[330300621,1719241842005,-321.07731717,0.00018862,2]
[330300622,1719241842014,-209.96997035,0.00018863,2]
[330300623,1719241842024,-717.00881294,0.00018863,2]
[330300624,1719241842033,-296.51463104,0.00018863,2]
[330300625,1719241842043,-449.99559938,0.00018863,2]
[330300626,1719241842052,-475.10495739,0.00018864,2]
[330300627,1719241842062,-1628.15219561,0.00018864,2]
[330300628,1719241842071,-476.02603799,0.00018865,2]
[330300629,1719241842081,-297.28712053,0.00018865,2]
[330300630,1719241842090,-155.0,0.00018865,2]
[330300631,1719241842099,-235.47138173,0.00018865,2]
[330300632,1719241842108,-261.98387426,0.00018866,2]
[330300633,1719241842118,-579.02551086,0.00018866,2]
[330300634,1719241842127,-787.77103259,0.00018867,2]
[330300635,1719241842135,-208.27255192,0.00018867,2]
[330300636,1719241842144,-642.06482152,0.00018867,2]
[330300637,1719241842153,-360.32505526,0.00018868,2]
[330300638,1719241842162,-501.27197359,0.00018868,2]
[330300639,1719241842171,-339.24007506,0.00018868,2]
[330300640,1719241842388,-221.03803917,0.00018869,2]
[330300641,1719241842398,-10537.00283536,0.00018869,2]
[330300642,1719241842408,-1049.09573179,0.00018869,2]
[330300643,1719241842418,-155.0167928,0.00018871,2]
[330300644,1719241842427,-196.20443442,0.00018876,2]
[330300645,1719241842437,-518.04242089,0.00018876,2]
[330300646,1719241842446,-1400.55359634,0.00018877,7]
[330300647,1719241842456,-305.04493689,0.00018878,2]
[330300648,1719241842465,-753.70840975,0.00018878,2]
[330300649,1719241842475,-176.62390029,0.00018878,2]
[330300650,1719241842484,-150.0,0.00018879,2]
[330300651,1719241842494,-368.47136735,0.00018879,2]
[330300652,1719241842503,-1285.71256166,0.00018879,2]
[330300653,1719241842512,-646.93267551,0.0001888,2]
[330300654,1719241842522,-287.92176092,0.0001888,2]
[330300655,1719241842531,-340.839913,0.0001888,2]
[330300656,1719241842540,-646.93267551,0.0001888,2]
[330300657,1719241842550,-155.0,0.0001888,2]
[330300658,1719241842559,-156.52071995,0.00018881,2]
[330300659,1719241842568,-233.680635,0.00018881,2]
[330300660,1719241842577,-155.0,0.00018883,2]
[330300661,1719241842587,-155.0,0.00018892,2]
[330300662,1719241842596,-10668.35634026,0.00018894,2]
[330300663,1719241842606,-2768.91234217,0.00018894,2]
[330300664,1719241842615,-176.54092728,0.00018895,2]
[330300665,1719241842624,-681.20323358,0.00018895,2]
[330300666,1719241842634,-2735.27898875,0.00018895,2]
[330300667,1719241842644,-155.0,0.00018899,2]
[330300668,1719241842653,-431.0,0.000189,3]
[330300669,1719241842662,-1000.0,0.000189,3]
[330300670,1719241842672,-183.01,0.000189,2]
[330300671,1719241842681,-183.01,0.000189,2]
[330300672,1719241842691,-183.01,0.000189,2]
[330300673,1719241842700,-183.01,0.000189,2]
[330300674,1719241842710,-183.01,0.000189,2]
[330300675,1719241842719,-183.01,0.000189,2]
[330300676,1719241842728,-183.01,0.000189,2]
[330300677,1719241842737,-183.01,0.000189,2]
[330300678,1719241842747,-183.01,0.000189,2]
[330300679,1719241842757,-183.01,0.000189,2]
[330300680,1719241842767,-183.01,0.000189,2]
[330300681,1719241842778,-183.01,0.000189,2]
[330300682,1719241842787,-183.01,0.000189,2]
[330300683,1719241842797,-183.01,0.000189,2]
[330300684,1719241842807,-183.01,0.000189,2]
[330300685,1719241842817,-183.01,0.000189,2]
[330300686,1719241842826,-183.01,0.000189,2]
[330300687,1719241842836,-183.01,0.000189,2]
[330300688,1719241842846,-183.01,0.000189,2]
[330300689,1719241842856,-183.01,0.000189,2]
[330300690,1719241842866,-183.01,0.000189,2]
[330300691,1719241842876,-183.01,0.000189,2]
[330300692,1719241842885,-183.01,0.000189,2]
[330300693,1719241842894,-183.01,0.000189,2]
[330300694,1719241842903,-183.01,0.000189,2]
[330300695,1719241842913,-183.01,0.000189,2]
[330300696,1719241842923,-183.01,0.000189,2]
[330300697,1719241842933,-183.01,0.000189,2]
[330300698,1719241842942,-183.01,0.000189,2]
[330300699,1719241842952,-183.01,0.000189,2]
[330300700,1719241842962,-183.01,0.000189,2]
[330300701,1719241842972,-183.01,0.000189,2]
[330300702,1719241842982,-183.01,0.000189,2]
[330300703,1719241842993,-183.01,0.000189,2]
[330300704,1719241843003,-183.01,0.000189,2]
[330300705,1719241843015,-183.01,0.000189,2]
[330300706,1719241843032,-183.01,0.000189,2]
[330300707,1719241843042,-183.01,0.000189,2]
[330300708,1719241843052,-183.01,0.000189,2]
[330300709,1719241843063,-183.01,0.000189,2]
[330300710,1719241843072,-183.01,0.000189,2]
[330300711,1719241843082,-183.01,0.000189,2]
[330300712,1719241843092,-183.01,0.000189,2]
[330300713,1719241843103,-183.01,0.000189,2]
[330300714,1719241843114,-183.01,0.000189,2]
[330300715,1719241843124,-183.01,0.000189,2]
[330300716,1719241843134,-183.01,0.000189,2]
[330300717,1719241843144,-183.01,0.000189,2]
[330300718,1719241843154,-183.01,0.000189,2]
[330300719,1719241843163,-183.01,0.000189,2]
[330300720,1719241843173,-183.01,0.000189,2]
[330300721,1719241843182,-183.01,0.000189,2]
[330300722,1719241843192,-183.01,0.000189,2]
[330300723,1719241843203,-183.01,0.000189,2]
[330300724,1719241843212,-183.01,0.000189,2]
[330300725,1719241843222,-183.01,0.000189,2]
[330300726,1719241843232,-183.01,0.000189,2]
[330300727,1719241843242,-183.01,0.000189,2]
[330300728,1719241843252,-183.01,0.000189,2]
[330300729,1719241843262,-183.01,0.000189,2]
[330300730,1719241843272,-183.01,0.000189,2]
[330300731,1719241843282,-183.01,0.000189,2]
[330300732,1719241843291,-183.01,0.000189,2]